Cogmind - Beta 11 @@@ ROGUE MODE // 2022.03.27 @ 20:57:52 Player: Qirby Result: Destroyed by Y-45 Defender with Heavy Assault Rifle Performance ------------- Evolutions (1) 500 Regions Visited (4) 800 Robots Destroyed (26) 130 Value Destroyed (564) 564 Prototype IDs (0) 0 Alien Tech Used (0) 0 Bonus (0) 0 TOTAL SCORE: 1994 Bonus ------- None Cogmind --------- Core Integrity 0/400 Matter 170/300 Energy 95/100 System Corruption 1% Temperature Cool (9) Movement Core (50) Location -9/Storage Parts ------- > --- POWER (2) -------- (None) > --- PROPULSION (2) --- (None) > --- UTILITY (3) ------ Heat Sink Targeting Computer > --- WEAPON (2) ------- Flail > --- INVENTORY (5) ---- Medium Storage Unit Peak State ------------ > --- POWER ------------ Ion Engine Light Ion Engine > --- PROPULSION ------- Aluminum Leg Titanium Leg > --- UTILITY ---------- Cryofiber Web Advanced Weight Redist. System Particle Charger > --- WEAPON ----------- High-powered Shotgun High-powered Shotgun > --- INVENTORY -------- Heat Sink Utility Shielding Mini Grenade Launcher Mining Laser [Rating: 21] Favorites ----------- Power Ion Engine Engine Ion Engine Propulsion Light Treads Treads Light Treads Leg Aluminum Leg Wheel Wheel Utility Heat Sink Device Heat Sink Storage Medium Storage Unit Processor Targeting Computer Protection Utility Shielding Weapon High-powered Shotgun Energy Gun EM Shotgun Energy Cannon Particle Cannon Ballistic Gun High-powered Shotgun Launcher Mini Grenade Launcher Special Weapon Mining Laser Impact Weapon Flail Build | -11 -10 -10 -9 -9 ------- Run | Scr Mat Min Mat Sto Slots Evolved 2 | . . . 2 . Power 1 | . . . 1 . Propulsion . | . . . . . Utility 1 | . . . 1 . Weapon . | . . . . . Parts Attached 62 | 4 10 8 21 19 Power 10 | 1 1 1 4 3 Engine 10 | 1 1 1 4 3 Core . | . . . . . Reactor . | . . . . . Propulsion 18 | 2 2 1 8 5 Treads 9 | 2 . . 5 2 Leg 7 | . 2 1 3 1 Wheel 2 | . . . . 2 Hover . | . . . . . Flight . | . . . . . Utility 12 | . 2 2 5 3 Device 7 | . 1 2 3 1 Storage 1 | . . . 1 . Processor 1 | . . . 1 . Hackware . | . . . . . Protection 3 | . 1 . . 2 Artifact . | . . . . . Weapon 22 | 1 5 4 4 8 Energy Gun 3 | 1 . . 1 1 Energy Cannon 4 | . 3 1 . . Ballistic Gun 5 | . . . 3 2 Ballistic Cannon . | . . . . . Launcher 5 | . 2 1 . 2 Special Weapon 3 | . . 2 . 1 Impact Weapon 2 | . . . . 2 Slashing Weapon . | . . . . . Piercing Weapon . | . . . . . Special Melee Weapon . | . . . . . Unidentified Prototypes . | . . . . . Parts Lost 18 | . 3 . 1 14 Power 5 | . 1 . 1 3 Propulsion 5 | . 1 . . 4 Utility 2 | . . . . 2 Weapon 6 | . 1 . . 5 Highest Loss Streak 11 | . 3 . 1 11 To Critical Strikes . | . . . . . Average Slot Usage (%) 88 | . 79 100 92 78 Engine 15 | . 12 14 20 14 Treads 10 | . 19 . 9 13 Leg 11 | . 4 28 11 2 Device 12 | . 4 21 14 9 Storage 2 | . . . 9 . Processor 4 | . . . 4 11 Protection 5 | . 11 6 . 7 Energy Gun 2 | . 5 . . 6 Energy Cannon 5 | . 10 11 . . Ballistic Gun 8 | . . . 20 9 Launcher 5 | . 9 13 . 1 Naked Turns . | . . . . . Heaviest Build 31 | 7 14 14 31 22 Greatest Support 40 | 40 40 27 40 40 Greatest Overweight (x) 6 | . 3 . 3 6 Average Overweight (x) . | . . . . . Largest Inventory Capacity 10 | 5 5 5 10 10 Average Capacity 6 | 5 5 5 9 5 Most Carried 6 | 2 4 5 6 5 Average Carried 3 | . 1 3 4 3 Final Capacity 10 | 5 5 5 10 5 Final Carried 5 | 1 2 5 5 1 Class Distribution -------------------- 65% | Mutant 34% | Scavenger-Mutant Dominant Class ---------------- Mutant | -10/Materials Mutant | -10/Mines Scavenger-Mutant | -9/Materials Scavenger-Mutant | -9/Storage Resources | -11 -10 -10 -9 -9 ----------- Run | Scr Mat Min Mat Sto Matter Collected 955 | 225 138 101 262 229 Remotely . | . . . . . Salvage Created 805 | 56 138 132 124 355 Parts 50 | 1 11 4 14 20 Haulers Intercepted 2 | . . . . 2 Recyclers Shooed 1 | . . . . 1 Parts Field Recycled . | . . . . . Retrieved Matter . | . . . . . Parts Self-Destructed . | . . . . . Prevented . | . . . . . Kills | -11 -10 -10 -9 -9 ------- Run | Scr Mat Min Mat Sto Combat Hostiles Destroyed 16 | . 5 1 4 6 Guns 9 | . . . 4 5 Cannons 5 | . 4 1 . . AOE 2 | . 1 . . 1 Classes Destroyed 10 | 1 3 1 2 3 Worker 2 | . . . . 2 Builder 1 | . . . 1 . Tunneler 1 | . . 1 . . Hauler 2 | . . . . 2 Recycler 2 | 1 . 1 . . Watcher 2 | . 1 . 1 . Swarmer 6 | . 3 . 3 . Grunt 6 | . 2 1 . 3 Duelist 1 | . . . . 1 Sentry 3 | . . . 1 2 Best Kill Streak 7 | 1 2 1 2 7 Combat Bots Only 3 | . 2 1 2 3 Max Kills in Single Turn 1 | 1 1 1 1 1 Gunslinging . | . . . . . Exploded 1 | . 1 . . 1 Melee . | . . . . . Uniques/NPCs Destroyed . | . . . . . Combat | -11 -10 -10 -9 -9 -------- Run | Scr Mat Min Mat Sto Damage Taken 2266 | 23 458 171 293 1321 Core 559 | . 118 30 24 387 Absorbed by Shields . | . . . . . Redirected to Shielding 53 | . . . . 53 Core Remaining (%) 70 | 100 . 40 . . Volleys Fired 97 | 4 20 20 16 37 Largest 2 | 1 2 1 2 2 Hottest 136 | 40 136 100 50 100 Shots Fired 134 | 4 29 20 25 56 Gun 78 | 4 . . 25 49 Cannon 42 | . 28 14 . . Launcher 6 | . 1 . . 5 Special 8 | . . 6 . 2 Kinetic 60 | . . . 25 35 Thermal 59 | . 28 20 . 11 Explosive 6 | . 1 . . 5 Electromagnetic 9 | 4 . . . 5 Robot Hit Streak 10 | 1 6 2 4 10 Robot Miss Streak 9 | 1 6 4 9 3 Penetration Max . | . . . . . Secondary Targets 1 | . . . . 1 Max Gunslinging Chain 1 | . . . . 1 Shots Hit Robots 73 | 2 13 8 11 39 Core Hits 44 | 2 7 4 8 23 Critical Kills . | . . . . . Critical Parts Destroyed . | . . . . . Critical Strikes 2 | . . . . 2 Burn 2 | . . . . 2 Melee Attacks 3 | . . . . 3 Impact 3 | . . . . 3 Slashing . | . . . . . Piercing . | . . . . . Sneak Attacks . | . . . . . Combat Hostiles . | . . . . . Follow-up Attacks . | . . . . . Damage Inflicted 1737 | 71 448 181 182 855 Guns 830 | 27 . . 177 626 Cannons 443 | . 286 157 . . Explosions 319 | 44 162 . . 113 Melee 55 | . . . . 55 Ramming 18 | . . . 5 13 Kinetic 662 | . . . 177 485 Thermal 645 | 44 286 181 . 134 Explosive 275 | . 162 . . 113 Electromagnetic 82 | 27 . . . 55 Impact 55 | . . . . 55 Slashing . | . . . . . Piercing . | . . . . . Highest Corruption 1 | . . . 1 1 Average Corruption 1 | . . . 1 1 Corruption Purged . | . . . . . Corruption Blocked . | . . . . . Effects 3 | . . . . 3 Message Errors 1 | . . . . 1 Parts Rejected 1 | . . . . 1 Weapon Failures 1 | . . . . 1 Overload Shots . | . . . . . Overflow Damage 51 | . 51 . . . Projectiles . | . . . . . Explosions 51 | . 51 . . . Melee . | . . . . . Knockbacks . | . . . . . Impact . | . . . . . Kinetic . | . . . . . Secondary . | . . . . . Self-Inflicted Damage 43 | 23 . . . 20 Shots 2 | 1 . . . 1 Rammed 8 | . . . 2 6 Targets Rammed 8 | . . . 2 6 Kicked . | . . . . . Crushed . | . . . . . Highest Temperature 611 | 12 611 165 2 68 Average Temperature 150 | 12 273 64 2 19 Received Heat Transfer 462 | . 84 102 63 213 Effects 19 | . 19 . . . Shutdowns 4 | . 4 . . . Energy Bleed 3 | . 3 . . . Interference 2 | . 2 . . . Matter Decay 1 | . 1 . . . Short Circuit 1 | . 1 . . . Damage (minor) 2 | . 2 . . . Damage (major) 4 | . 4 . . . Damage (core) 2 | . 2 . . . Siege Activations . | . . . . . Robots Corrupted . | . . . . . Combat Hostiles . | . . . . . Parts Fried . | . . . . . Impact Corruptions . | . . . . . Robots Melted . | . . . . . Combat Hostiles . | . . . . . Parts Melted . | . . . . . Heat Transferred 1347 | 50 518 309 . 470 Parts Sabotaged . | . . . . . Parts Stolen . | . . . . . Parts Stripped . | . . . . . Power Chain Reactions 1 | 1 . . . . Missiles Intercepted . | . . . . . Alert | -11 -10 -10 -9 -9 ------- Run | Scr Mat Min Mat Sto Peak Influence 184 | 5 127 117 184 177 Initial 49 | . 3 49 . 20 Average 61 | 2 50 61 70 68 Maximum Alert Level . | . . . . . Low Security (%) 100 | 100 100 100 100 100 Level 1 . | . . . . . Level 2 . | . . . . . Level 3 . | . . . . . Level 4 . | . . . . . Level 5 . | . . . . . High Security . | . . . . . Max Security . | . . . . . Squads Dispatched 1 | . . . 1 . Investigation . | . . . . . Extermination . | . . . . . Reinforcement 1 | . . . 1 . Assault . | . . . . . Garrison . | . . . . . Intercept . | . . . . . Searches Triggered . | . . . . . Construction Impeded 1 | . . . 1 . Haulers Reinforced . | . . . . . Active Scanning Responses . | . . . . . Cargo Convoy Interrupts . | . . . . . Stealth | -11 -10 -10 -9 -9 --------- Run | Scr Mat Min Mat Sto Distress Signals 1 | . . . . 1 Communications Jammed . | . . . . . Distress Signals . | . . . . . Times Spotted 36 | . 8 2 15 11 Peak Tracking Total 5 | . 5 2 4 4 Tactical Retreats 3 | . . 1 2 . Traps | -11 -10 -10 -9 -9 ------- Run | Scr Mat Min Mat Sto Traps Triggered 5 | . . 1 1 3 Indirectly . | . . . . . Trap Hack Attempts . | . . . . . Triggered . | . . . . . Disarmed . | . . . . . Reprogrammed . | . . . . . Reused . | . . . . . Traps Extracted . | . . . . . Installed . | . . . . . Triggered . | . . . . . Machines | -11 -10 -10 -9 -9 ---------- Run | Scr Mat Min Mat Sto Machines Disabled 3 | . 1 . . 2 Max in Single Turn 1 | . 1 . . 1 Machines Sabotaged . | . . . . . Garrisons Compromised . | . . . . . Overloaded Fab Kills . | . . . . . Hacking | -11 -10 -10 -9 -9 --------- Run | Scr Mat Min Mat Sto Machines Accessed 10 | . 2 2 2 4 Terminals 6 | . 1 1 1 3 Fabricators . | . . . . . Repair Stations . | . . . . . Recycling Units 2 | . 1 . . 1 Scanalyzers 1 | . . . 1 . Garrison Access . | . . . . . Total Hacks 24 | . 3 3 8 10 Successful 14 | . 1 2 7 4 Failed 10 | . 2 1 1 6 Catastrophic 1 | . . . . 1 Database Lockouts . | . . . . . Manual 4 | . . . . 4 Terminals 15 | . 2 2 3 8 Fabricators . | . . . . . Repair Stations . | . . . . . Recycling Units 3 | . 1 . . 2 Scanalyzers 5 | . . . 5 . Garrison Access . | . . . . . Terminal Hacks 7 | . . 2 2 3 Part Schematic 1 | . . . . 1 Open Door 1 | . . 1 . . Level Access Points 1 | . . . . 1 Repair Station Index 1 | . . . 1 . Registered Prototypes 1 | . . . 1 . Zone Layout 2 | . . 1 . 1 Fabricator Hacks . | . . . . . Repair Station Hacks . | . . . . . Recycling Unit Hacks 2 | . 1 . . 1 Report Inventory 1 | . 1 . . . Retrieve Components 1 | . . . . 1 Scanalyzer 5 | . . . 5 . Insert Component 2 | . . . 2 . Analyze 3 | . . . 3 . Garrison Access Hacks . | . . . . . Unauthorized Hacks . | . . . . . Terminals . | . . . . . Fabricators . | . . . . . Repair Stations . | . . . . . Recycling Units . | . . . . . Scanalyzers . | . . . . . Garrison Access . | . . . . . Data Cores Recovered . | . . . . . Used . | . . . . . Hacking Detections 5 | . 1 1 1 2 Full Trace Events . | . . . . . Feedback Events . | . . . . . Feedback Blocked . | . . . . . Robot Schematics Acquired . | . . . . . Robots Built . | . . . . . Authchips . | . . . . . Time . | . . . . . Total Robot Build Rating . | . . . . . Part Schematics Acquired 3 | . . . 2 1 Parts Built . | . . . . . Authchips . | . . . . . Time . | . . . . . Total Part Build Rating . | . . . . . Parts Repaired . | . . . . . Time . | . . . . . Parts Recycled . | . . . . . Recycled Matter . | . . . . . Retrieved Matter . | . . . . . Retrieved Components 9 | . . . . 9 Parts Scanalyzed 2 | . . . 2 . Part Schematics Acquired 2 | . . . 2 . Parts Damaged 2 | . . . 2 . Bothacking | -11 -10 -10 -9 -9 ------------ Run | Scr Mat Min Mat Sto Used RIF Installer . | . . . . . Robots Hacked . | . . . . . Non-combat . | . . . . . Combat . | . . . . . Robot Hacks Applied . | . . . . . Relay Couplers Released . | . . . . . Fabnet Peak Effective % . | . . . . . Robots Rewired . | . . . . . Allies Hacked . | . . . . . Hacks Repelled . | . . . . . Allies | -11 -10 -10 -9 -9 -------- Run | Scr Mat Min Mat Sto Total Allies . | . . . . . Largest Group . | . . . . . Highest-Rated Group . | . . . . . Highest-Rated Ally . | . . . . . Total Orders . | . . . . . Ally Attacks . | . . . . . Total Damage . | . . . . . Kills . | . . . . . Allies Corrupted . | . . . . . Allies Melted . | . . . . . Intel | -11 -10 -10 -9 -9 ------- Run | Scr Mat Min Mat Sto Robot Analysis Total . | . . . . . Derelict Logs Recovered . | . . . . . Drone Launches . | . . . . . Drone Recoveries . | . . . . . Exploration | -11 -10 -10 -9 -9 ------------- Run | Scr Mat Min Mat Sto Turns Passed 2039 | 77 380 489 583 510 Spaces Moved 1080 | 42 191 293 337 217 Core 37 | 5 24 . . 8 Treads 423 | 37 118 . 133 135 Legs 600 | . 49 293 204 54 Wheels 20 | . . . . 20 Hover . | . . . . . Flight . | . . . . . Fastest Speed 50 | 50 100 120 125 80 Average Speed 139 | 146 149 122 144 144 Slowest Speed 350 | 160 200 125 330 350 Overloaded Moves . | . . . . . Propulsion Burnouts . | . . . . . Robots Hopped . | . . . . . Cave-ins Triggered . | . . . . . Exploration Rate (%) 35 | 4 31 69 30 42 Regions Visited 4 Branch Regions 2 Pre-discovered Areas . | . . . . . Known Exits Taken . | . . . . . Unknown Exits Taken 4 | 1 1 1 1 . Scrap Searched . | . . . . . Spaces Dug 2 | . . 2 . . Terrain Destroyed 36 | . 6 6 . 24 Melee . | . . . . . Projectile 8 | . 2 6 . . AOE 28 | . 4 . . 24 Terrain Rammed . | . . . . . Walls Destroyed . | . . . . . Machines Disabled . | . . . . . Actions | -11 -10 -10 -9 -9 --------- Run | Scr Mat Min Mat Sto Total 1460 | 52 258 389 412 349 Wait 130 | . 23 62 6 39 Move 1076 | 41 190 292 336 217 Hop . | . . . . . Pick Up 40 | 3 10 5 13 9 Fast Attach 9 | 2 . . 4 3 Attach 35 | 2 9 . 13 11 Detach 5 | . 2 . 3 . Swap 18 | . 1 8 4 5 Drop 23 | . 3 2 15 3 Fire 97 | 4 20 20 16 37 Melee 3 | . . . . 3 Ram 3 | . . . . 3 Kick . | . . . . . Crush 5 | . . . 2 3 Escape Stasis 16 | . . . . 16 Rewire . | . . . . . Trap . | . . . . . Miscellaneous . | . . . . . Route ------- -11/Scrapyard -10/Materials -10/Mines -9/Materials -9/Storage (discovered 1 exit: Mat) History --------- Turn | Location | Event 31 | -11/Scrapyard | Discovered new exit (range 16) 78 | -11/Scrapyard | Entered Materials 315 | -10/Materials | Build established: Mutant 379 | -10/Materials | Lost 3 parts (1p1n1w) 430 | -10/Materials | Discovered new exit (range 14) 458 | -10/Materials | Entered Mines 686 | -10/Mines | Met a Derelict who couldn't figure out how to use a Trap Extractor 772 | -10/Mines | Core integrity fell below 50% 940 | -10/Mines | Discovered new exit (range 5) 947 | -10/Mines | Entered Materials 947 | -9/Materials | Evolved 2 slots: Power x1, Utility x1 1478 | -9/Materials | Build established: Scavenger-Mutant 1525 | -9/Materials | Discovered new exit (range 3) 1530 | -9/Materials | Entered Storage 1721 | -9/Storage | Identified exit to Materials 1893 | -9/Storage | Core integrity fell below 50% 1930 | -9/Storage | Lost 11 parts (3p3n2u3w) 2017 | -9/Storage | Core integrity fell below 20% 2040 | -9/Storage | Destroyed by Y-45 Defender with Heavy Assault Rifle Last Messages --------------- 01988_ Connecting with Door Terminal... 01999_ Door Terminal disabled. 02005_ The unstable cave ceiling collapses. 02005_ U-05 Engineer builds a Wall. 02009_ U-05 Engineer lays Concrete. 02013_ Transfer Shaft disabled. 02013_ A-02 Transporter destroyed. 02014_ U-05 Engineer lays Concrete. 02016_ System corrupted: Mni. Grenade Launcher rejected. 02016_ U-05 Engineer builds a Wall. 02020_ U-05 Engineer lays Concrete. 02021_ U-05 Engineer builds a Wall. 02022_ U-05 Engineer lays Concrete. 02027_ Autogun destroyed. 02028_ U-05 Engineer lays Concrete. 02028_ U-05 Engineer builds a Wall. 02034_ Aluminum Leg destroyed. 02035_ U-05 Engineer lays Concrete. 02040_ U-05 Engineer builds a Wall. 02040_ U-05 Engineer lays Concrete. Map ----- +----------------------------------------------------+ | ??????????# !! ###"T"#####?????????????????? | | ??????????# #####+#########?????????????????????? | | ?????????????# %= #?????????????????????????? | | ?????????????# #?????????????????????????? | | ?????????????# ##????????????????????????? | | ????????????## #????????##??????????????? | | ????????????#" ##?####### ##?????????????? | | ????????????#T !!!% ##?# #?????????????? | | ????????????#" !! #?# #?????????????? | | ????????????## !! ##?# #?????????????? | | ?????????????# % #?# """ #?????????????? | | ????????##########+####### """ #?????????????? | | ???????? # ^""" / """ #?????????????? | | ?????"" """ """ # %"Y"= ## """ #?????????????? | | ?????????"" """ /^^^![ ## """ #?????????????? | | ?????????"" """ # =! [ ## #?????????????? | | ???????? # ! #####+#####?"???????????? | | ??????? ?# # "???????????? | | ???????###T####?# # """" #????? | | ?????????#??????###+#########u## + #????? | | ??????????????????? # !!%!u ## ]# #????? | | ??????????????????? # """!"! # ## #######????? | | ??????????????????? # """="* # ###??????????? | | ??????????????????? # """ u # #????????????? | | ????????????????????# #""""#????????????? | | ????????????????????# Y@ #????????????????? | | ????????????????????# ##????????????????? | | ????????????????????# #?????????????????? | | ????????????????????## ########?????????????????? | | ?????????????????????##?????????????????????????? | | ????????????????????????????????????????????????? | | ????????????????????????????????????????????????? | | ????????????????????????????????????????????????? | | ????????????????????????????????????????????????? | | | | | | | | | | | | | | | | | | | | | | | | | | | | | | | | | +----------------------------------------------------+ Best States ------------- Heat Dissipation 38 Energy Generation 19 Energy Capacity 430 Matter Stores 300 Matter Capacity 300 Sight Range 16 Terrain Scan Density 10 Additional Mass Support 9 Base Temperature (-) 100 Power Shielding 33 Utility Shielding 33 Evasion (%) 55 Targeting Accuracy 5 Recoil Reduction 2 Particle Charging 15 Item Schematics ----------------- Adv. Weight Redist. System | -9/Materials | Scanalyzed Titanium Leg | -9/Materials | Scanalyzed Imp. Weapon Shielding | -9/Storage | Hacked Robot Schematics ------------------ None Fabricated ------------ Nothing Alien Tech Used ----------------- None Achievements -------------- None Challenges ------------ None Game ------ Seed SuperchargedArmoredAirjet Manual? 0 Play Time 00:31:01 Cumulative 6.7 hours Start 2022.03.27 @ 20:28:06 End 2022.03.27 @ 20:57:52 Sessions 1 Manual Loads 0 Difficulty Rogue Special Mode None Game No. 6 Rogue 6 Adventurer 0 Explorer 0 Win Type - Total 0 Types 0/0/0/0/0/0/0/0/0 Lore% 14 Gallery% 10 Achievement% 10 Wizard Run 0 Options --------- ASCII 1 Keyboard 0 Movement Mouse Keybinds 0 Fullscreen 1 Font 14/Terminus Map View 84x54 Tactical HUD 1 Map Filters NONE Filters NONE Steam 1 RUN: c06616d8-c8b6-4c64-a51a-fd6d48bcb68b